fUST/lending_fUST_20240409
["ID","MTS","AMOUNT","RATE_DAILY","PERIOD"]
[321901672,1712601032412,-4650.7532412,0.0004086,2]
[321901674,1712601032422,-187.48171639,0.00040991,4]
[321901677,1712601032432,-223.54527837,0.00040991,2]
[321901679,1712601032443,-435.02219124,0.00040991,4]
[321901681,1712601032454,-3712.81767264,0.00040991,4]
[321901682,1712601032465,-649.47104033,0.00040991,2]
[321901684,1712601032476,-210.77487099,0.00040991,4]
[321901685,1712601032485,-364.51738205,0.00040991,30]
[321901686,1712601032494,-5778.03579658,0.00040991,4]
[321901688,1712601032503,-357.80293055,0.00040992,4]
[321901690,1712601032514,-166.666666,0.00041096,2]
[321901691,1712601032523,-2460.2584413,0.00041211,2]
[321901692,1712601032534,-775.895088,0.00041445,2]
[321901694,1712601032544,-2301.0468852,0.0004145,2]
[321901695,1712601032554,-166.666666,0.00042058,2]
[321901696,1712601032563,-156.39930258,0.00042788,2]
[321901697,1712601032573,-173.409407,0.00042969,2]
[321901698,1712601032583,-677.22481102,0.00042998,4]
[321901699,1712601032594,-166.666666,0.00043019,2]
[321901700,1712601032603,-172.241097,0.00043053,2]
[321901701,1712601032613,-449.77527494,0.00043189,31]
[321901702,1712601032622,-320.45805023,0.00043189,31]
[321901703,1712601032631,-330.38237878,0.00043189,31]
[321901704,1712601032641,-327.79358382,0.00043189,31]
[321901705,1712601032652,-500.0,0.00043189,31]
[321901706,1712601032661,-39515.41546412,0.0004319,4]
[321901711,1712601032734,-0.03616399,0.0004319,4]
[321901740,1712601038317,-171.333637,0.0004259,2]
[321901743,1712601038327,-4323.26315793,0.0004319,4]
[321901745,1712601038337,-309.90703099,0.00043191,4]
[321901747,1712601038347,-49185.66685085,0.00043191,30]
[321901750,1712601038373,-92060.62733411,0.00043191,30]
[321901752,1712601038383,-469.89408815,0.00043192,4]
[321901754,1712601038392,-1134.29093305,0.00043192,120]
[321901756,1712601038402,-24900.0,0.00043193,2]
[321901758,1712601038411,-176.0097894,0.00043273,2]
[321901759,1712601038421,-26714.8983,0.00043411,30]
[321901760,1712601038430,-50946.3185316,0.00043893,3]
[321901761,1712601038439,-830.85840079,0.00043893,2]
[321901762,1712601038449,-560.0,0.00043965,3]
[321901763,1712601038458,-166.666666,0.00043981,2]
[321901764,1712601038468,-166.666666,0.00044942,2]
[321901765,1712601038477,-8516.28804601,0.00045,120]
[321901766,1712601038487,-166.666666,0.00045904,2]
[321901767,1712601038497,-176.00978938,0.00046587,2]
[321901768,1712601038507,-200.0,0.00046881,4]
[321901769,1712601038517,-181.29241369,0.00046881,4]
[321901770,1712601038526,-155.18037566,0.00046881,4]
[321901771,1712601038536,-203.66164366,0.00046882,4]
[321901772,1712601038546,-155.99996299,0.00046882,4]
[321901773,1712601038558,-157.08950999,0.00046882,4]
[321901774,1712601038569,-1575.74673206,0.00046979,4]
[321901775,1712601038579,-1453.70147651,0.000471,4]
[321901776,1712601038591,-170.26460244,0.00047308,30]
[321901777,1712601038601,-1011.80959258,0.00047387,4]
[321901778,1712601038611,-846.44820607,0.00047496,4]
[321901779,1712601038623,-155.96001844,0.00047498,4]
[321901780,1712601038633,-20447.70648844,0.000475,2]
[321901781,1712601038643,-153.53225864,0.00047501,30]
[321901782,1712601038652,-783.0,0.00048361,3]
[321901783,1712601038662,-153.0,0.00048503,2]
[321901784,1712601038672,-153.0,0.00048503,2]
[321901785,1712601038682,-202.7046065,0.00048503,2]
[321901786,1712601038691,-202.7046065,0.00048503,2]
[321901787,1712601038703,-153.0,0.00048503,2]
[321901788,1712601038712,-202.7046065,0.00048503,2]
[321901789,1712601038722,-202.7046065,0.00048503,2]
[321901790,1712601038731,-153.0,0.00048503,2]
[321901791,1712601038741,-160.726723,0.0004862,120]
[321901792,1712601038751,-500.0,0.00049,120]
[321901793,1712601038760,-500.0,0.00049,120]
[321901794,1712601038770,-500.0,0.00049,120]
[321901795,1712601038779,-544.24,0.00049,120]
[321901796,1712601038789,-3369.67509796,0.00049,120]
[321901797,1712601038799,-500.0,0.00049,120]
[321901798,1712601038808,-500.0,0.00049,120]
[321901799,1712601038817,-500.0,0.00049,120]
[321901800,1712601038826,-355.84,0.00049,120]
[321901801,1712601038836,-520.34,0.00049,120]
[321901802,1712601038846,-202.7046065,0.00049325,2]
[321901803,1712601038856,-202.7046065,0.00049325,2]
[321901804,1712601038866,-459.5276396,0.00049325,2]
[321901805,1712601038876,-156.39930258,0.00049326,2]
[321901806,1712601038885,-263.2651397,0.000494,4]
[321901807,1712601038895,-158.95687571,0.00049401,3]
[321901808,1712601038905,-618.34602873,0.00049498,4]
[321901809,1712601038914,-153.53225864,0.00049724,30]
[321901810,1712601038924,-300.0,0.00049759,14]
[321901811,1712601038933,-448.88909482,0.0004981,14]
[321901812,1712601038943,-541.42049465,0.00049897,2]
[321901813,1712601038952,-156.56610872,0.00049897,4]
[321901814,1712601038961,-254.40193028,0.00049897,4]
[321901815,1712601038970,-206.78943606,0.00049897,4]
[321901816,1712601038980,-548.71242219,0.00049897,4]
[321901817,1712601038989,-529.47917891,0.00049898,4]
[321901818,1712601038998,-4276.51349334,0.00049898,4]
[321901819,1712601039008,-37169.22734446,0.00049899,4]
[321901820,1712601039017,-2000.0,0.000499,72]
[321901821,1712601039026,-176.00978938,0.000499,2]
[321901822,1712601039035,-869.3227052,0.000499,10]
[321901823,1712601039112,-2897.79348,0.0004991,72]
[321901824,1712601039123,-184.59186821,0.00049996,4]
[321901825,1712601039132,-891.68561182,0.00049996,4]
[321901826,1712601039142,-322.89169328,0.00049998,4]
[321901827,1712601039151,-193.28382761,0.00049998,4]
[321901828,1712601039161,-4016.08815591,0.00049998,4]
[321901829,1712601039177,-2761.96791256,0.00049998,120]
[321901830,1712601039187,-155.96053139,0.00049998,4]
[321901831,1712601039197,-283.87912232,0.00049998,4]
[321901832,1712601039206,-7678.03526613,0.00049998,4]
[321901833,1712601039217,-22787.18749186,0.00049998,120]
[321901870,1712601040259,-1305.44,0.0004319,7]
[321901873,1712601040270,-1305.44,0.0004319,7]
[321901875,1712601040279,-1745.6698505,0.00049998,120]
[321901876,1712601040289,-1008.58686776,0.00049999,4]
[321901878,1712601040298,-1305.44,0.00049999,7]
[321901881,1712601040308,-1305.44,0.00049999,7]
[321901882,1712601040317,-1305.44,0.00049999,7]
[321901884,1712601040326,-14942.08562025,0.0005,120]
[321901887,1712601040337,-10617.00821389,0.0005,120]
[321901919,1712601040647,-63798.13556695,0.0005,120]
[321902174,1712601043509,-1305.44,0.0004319,7]
[321902175,1712601043518,-1496.52119892,0.0005,120]
[321902176,1712601043529,-746.98811977,0.0005,120]
[321902177,1712601043540,-950.000003,0.0005,120]
[321902335,1712601046583,-155.6986578,0.00048503,2]
[321902337,1712601046593,-350.1959054,0.00048503,2]
[321902346,1712601046675,-158.95687572,0.00049401,3]
[321902348,1712601046686,-1333.11114818,0.00049999,4]
[321902350,1712601046696,-30933.8436773,0.0005,120]
[321902352,1712601046705,-954.10944275,0.0005,60]
[321902354,1712601046715,-309.70233039,0.0005,2]
[321902356,1712601046729,-2415.55737115,0.0005,2]
[321902358,1712601046741,-1000.0,0.0005,30]
[321902360,1712601046750,-1000.0,0.0005,30]
[321902362,1712601046760,-1000.0,0.0005,30]
[321902364,1712601046769,-41387.34340246,0.0005,120]
[321902367,1712601046779,-24631.22613151,0.0005,120]
[321902368,1712601046788,-6771.84034734,0.0005,5]
[321902370,1712601046798,-572.888874,0.0005,7]
[321902373,1712601046807,-572.888874,0.0005,7]
[321902374,1712601046816,-151.0,0.0005,7]
[321902377,1712601046826,-151.0,0.0005,7]
[321902379,1712601046835,-151.0,0.0005,7]
[321902381,1712601046845,-151.0,0.0005,7]
[321902383,1712601046859,-151.0,0.0005,7]
[321902385,1712601046869,-1336.522732,0.0005,7]
[321902387,1712601046883,-1336.522732,0.0005,7]
[321902388,1712601046892,-151.0,0.0005,7]
[321902391,1712601046902,-182.143379,0.0005,7]
[321902393,1712601046912,-182.143379,0.0005,7]
[321902394,1712601046921,-200.214831,0.0005,7]
[321902396,1712601046931,-200.214831,0.0005,7]
[321902398,1712601046941,-151.0,0.0005,7]
[321902400,1712601046951,-151.0,0.0005,7]
[321902402,1712601046960,-2024.542988,0.0005,7]
[321902404,1712601046972,-2024.542988,0.0005,7]
[321902407,1712601046983,-151.0,0.0005,7]
[321902409,1712601046994,-151.0,0.0005,7]
[321902411,1712601047003,-700.849501,0.0005,7]
[321902413,1712601047013,-700.849501,0.0005,7]
[321902415,1712601047023,-700.849501,0.0005,7]
[321902417,1712601047033,-700.849501,0.0005,7]
[321902419,1712601047042,-151.0,0.0005,7]
[321902421,1712601047052,-151.0,0.0005,7]
[321902423,1712601047061,-179.042303,0.0005,7]
[321902424,1712601047071,-470.0,0.0005,30]
[321902426,1712601047082,-151.0,0.0005,7]
[321902428,1712601047091,-151.0,0.0005,7]
[321902430,1712601047101,-185.031876,0.0005,7]
[321902432,1712601047109,-151.0,0.0005,7]
[321902434,1712601047118,-249.753083,0.0005,7]
[321902437,1712601047135,-153.0,0.00050147,2]
[321902439,1712601047144,-153.0,0.00050147,2]
[321902441,1712601047153,-153.0,0.00050147,2]
[321902443,1712601047163,-869.3227052,0.000509,15]
[321902445,1712601047173,-202.7046065,0.00050907,2]
[321902447,1712601047184,-19661.79747553,0.00051,120]
[321902449,1712601047193,-151.0,0.00051,7]
[321902451,1712601047202,-572.888874,0.00051,7]
[321902453,1712601047211,-572.888874,0.00051,7]
[321902455,1712601047221,-151.0,0.00051,7]
[321902457,1712601047231,-151.0,0.00051,7]
[321902458,1712601047242,-155.920055,0.00051,7]
[321902460,1712601047252,-151.0,0.00051,7]
[321902462,1712601047262,-1336.522732,0.00051,7]
[321902465,1712601047273,-1336.522732,0.00051,7]
[321902466,1712601047283,-154.16445,0.00051,7]
[321902469,1712601047293,-182.143379,0.00051,7]
[321902470,1712601047304,-182.143379,0.00051,7]
[321902472,1712601047315,-200.214831,0.00051,7]
[321902474,1712601047325,-200.214831,0.00051,7]
[321902477,1712601047336,-151.0,0.00051,7]
[321902479,1712601047348,-151.0,0.00051,7]
[321902481,1712601047358,-2024.542988,0.00051,7]
[321902482,1712601047369,-2024.542988,0.00051,7]
[321902485,1712601047385,-151.0,0.00051,7]
[321902487,1712601047394,-151.0,0.00051,7]
[321902489,1712601047405,-153.090527,0.00051126,60]
[321902491,1712601047415,-245.38673713,0.00051453,60]
[321902493,1712601047425,-170.26460244,0.00051658,60]
[321902495,1712601047435,-869.3227052,0.000519,20]
[321902497,1712601047445,-151.0,0.00052054,7]
[321902499,1712601047454,-1000.0,0.00052054,120]
[321902501,1712601047463,-1000.0,0.00052054,120]
[321902503,1712601047472,-1000.0,0.00052054,120]
[321902505,1712601047483,-1000.0,0.00052054,120]
[321902507,1712601047492,-1000.0,0.00052054,120]
[321902509,1712601047501,-1000.0,0.00052054,120]
[321902511,1712601047511,-1000.0,0.00052054,120]
[321902513,1712601047520,-1000.0,0.00052054,120]
[321902514,1712601047530,-1000.0,0.00052054,120]
[321902516,1712601047539,-1000.0,0.00052054,120]
[321902518,1712601047549,-1000.0,0.00052054,120]
[321902520,1712601047558,-1000.0,0.00052054,120]
[321902522,1712601047568,-1000.0,0.00052054,120]
[321902525,1712601047578,-529.14803498,0.00052054,120]
[321902527,1712601047587,-1000.0,0.00052054,120]
[321902529,1712601047597,-1000.0,0.00052054,120]
[321902531,1712601047607,-1000.0,0.00052054,120]
[321902532,1712601047616,-1000.0,0.00052054,120]
[321902534,1712601047627,-1000.0,0.00052054,120]
[321902537,1712601047636,-1000.0,0.00052054,120]
[321902539,1712601047646,-1000.0,0.00052054,120]
[321902540,1712601047656,-1000.0,0.00052054,120]
[321902542,1712601047666,-1000.0,0.00052054,120]
[321902545,1712601047677,-1000.0,0.00052054,120]
[321902546,1712601047686,-1000.0,0.00052054,120]
[321902549,1712601047696,-1063.75784975,0.00052054,120]
[321902550,1712601047706,-1000.0,0.00052054,120]
[321902553,1712601047717,-1000.0,0.00052054,120]
[321902555,1712601047728,-1000.0,0.00052054,120]
[321902557,1712601047738,-1000.0,0.00052054,120]
[321902558,1712601047748,-1000.0,0.00052054,120]
[321902560,1712601047758,-1000.0,0.00052054,120]
[321902563,1712601047768,-1000.0,0.00052054,120]
[321902565,1712601047778,-1000.0,0.00052054,120]
[321902566,1712601047787,-1000.0,0.00052054,120]
[321902568,1712601047796,-1000.0,0.00052054,120]
[321902570,1712601047805,-1000.0,0.00052054,120]
[321902573,1712601047815,-1000.0,0.00052054,120]
[321902574,1712601047824,-1000.0,0.00052054,120]
[321902577,1712601047833,-1000.0,0.00052054,120]
[321902579,1712601047843,-1000.0,0.00052054,120]
[321902580,1712601047853,-1000.0,0.00052054,120]
[321902583,1712601047863,-1000.0,0.00052054,120]
[321902585,1712601047876,-1000.0,0.00052054,120]
[321902587,1712601047886,-282.92567567,0.00052054,120]
[321902589,1712601047896,-572.888874,0.00052054,7]
[321902591,1712601047906,-572.888874,0.00052054,7]
[321902593,1712601047916,-151.0,0.00052054,7]
[321902595,1712601047926,-151.0,0.00052054,7]
[321902597,1712601047938,-1336.522732,0.00052054,7]
[321902599,1712601047947,-1336.522732,0.00052054,7]
[321902601,1712601047957,-182.143379,0.00052054,7]
[321902603,1712601047966,-182.143379,0.00052054,7]
[321902605,1712601047975,-200.214831,0.00052054,7]
[321902607,1712601047985,-200.214831,0.00052054,7]
[321902609,1712601047995,-152.724681,0.00052054,7]
[321902611,1712601048006,-151.0,0.00052054,7]
[321902613,1712601048015,-2024.542988,0.00052054,7]
[321902615,1712601048026,-2024.542988,0.00052054,7]
[321902617,1712601048037,-151.0,0.00052054,7]
[321902618,1712601048047,-700.849501,0.00052054,7]
[321902620,1712601048058,-700.849501,0.00052054,7]
[321902623,1712601048069,-151.0,0.00052054,7]
[321902625,1712601048081,-151.0,0.00052054,7]
[321902626,1712601048092,-153.0,0.00052636,2]
[321902628,1712601048102,-153.0,0.00052636,2]
[321902631,1712601048113,-153.0,0.00052636,2]
[321902632,1712601048123,-153.0,0.00052636,2]
[321902635,1712601048133,-153.0,0.00052636,2]
[321902637,1712601048143,-153.0,0.00052636,2]
[321902638,1712601048152,-153.0,0.00052636,2]
[321902640,1712601048161,-153.0,0.00052636,2]
[321902642,1712601048171,-153.0,0.00052636,2]
[321902645,1712601048185,-153.0,0.00052636,2]
[321902646,1712601048195,-153.0,0.00052636,2]
[321902648,1712601048204,-153.0,0.00052636,2]
[321902650,1712601048214,-153.0,0.00052636,2]
[321902653,1712601048224,-153.0,0.00052636,2]
[321902654,1712601048233,-153.0,0.00052636,2]
[321902656,1712601048250,-153.0,0.00052636,2]
[321902665,1712601048323,-153.0,0.00052636,2]
[321902667,1712601048334,-153.0,0.00052636,2]
[321902669,1712601048345,-153.0,0.00052636,2]
[321902671,1712601048355,-153.0,0.00052636,2]
[321902673,1712601048364,-306.0,0.00052636,2]
[321902675,1712601048376,-869.3227052,0.000529,26]
[321902677,1712601048386,-151.0,0.000529,7]
[321902679,1712601048396,-700.849501,0.000529,7]
[321902681,1712601048406,-700.849501,0.000529,7]
[321902683,1712601048416,-1097.0,0.00053197,10]
[321902685,1712601048426,-319.1958443,0.00053288,2]
[321902687,1712601048437,-153.53225864,0.00053649,60]
[321902689,1712601048446,-869.3227052,0.000539,31]
[321902691,1712601048456,-307.7674614,0.00054521,30]
[321902693,1712601048466,-153.0,0.00054521,2]
[321902695,1712601048476,-153.0,0.00054521,2]
[321902697,1712601048487,-153.0,0.00054521,2]
[321902699,1712601048497,-153.0,0.00054521,30]
[321902701,1712601048506,-153.0,0.00054521,2]
[321902703,1712601048515,-153.0,0.00054521,2]
[321902705,1712601048525,-153.0,0.00054521,30]
[321902707,1712601048534,-153.0,0.00054521,2]
[321902709,1712601048543,-153.0,0.00054521,2]
[321902711,1712601048552,-153.0,0.00054521,30]
[321902713,1712601048561,-153.0,0.00054521,2]
[321902715,1712601048570,-306.0,0.00054521,2]
[321902717,1712601048579,-153.0,0.00054521,2]
[321902719,1712601048589,-153.0,0.00054521,2]
[321902721,1712601048598,-153.0,0.00054521,2]
[321902723,1712601048608,-153.0,0.00054521,2]
[321902725,1712601048617,-153.0,0.00054521,2]
[321902727,1712601048628,-153.0,0.00054521,2]
[321902729,1712601048637,-153.0,0.00054521,2]
[321902731,1712601048647,-153.0,0.00054521,2]
[321902733,1712601048656,-202.7046065,0.00054559,2]
[321902735,1712601048665,-202.7046065,0.00054559,2]
[321902737,1712601048674,-153.0,0.00054559,2]
[321902739,1712601048683,-153.0,0.00054559,2]
[321902741,1712601048692,-202.7046065,0.00054559,2]
[321902743,1712601048702,-153.0,0.00054559,2]
[321902745,1712601048711,-202.7046065,0.00054559,2]
[321902747,1712601048721,-153.0,0.00054559,2]
[321902748,1712601048730,-153.0,0.00054559,2]
[321902749,1712601048739,-153.0,0.00054559,2]
[321902750,1712601048748,-153.0,0.00054559,2]
[321902751,1712601048757,-153.0,0.00054559,2]
[321902752,1712601048766,-1607.98319803,0.00055,4]
[321902753,1712601048775,-155.25956853,0.0005534,120]
[321902754,1712601048784,-154.0645432,0.00055342,60]
[321902755,1712601048793,-153.0,0.00055342,60]
[321902756,1712601048802,-153.0,0.00055342,60]
[321902757,1712601048812,-306.0,0.00055342,60]
[321902758,1712601048820,-202.7046065,0.00055342,60]
[321902759,1712601048830,-202.7046065,0.00055342,60]
[321902760,1712601048839,-202.7046065,0.00055342,60]
[321902761,1712601048848,-202.7046065,0.00055342,60]
[321902762,1712601048857,-153.0,0.00055342,2]
[321902763,1712601048866,-202.7046065,0.00055342,60]
[321902764,1712601048876,-306.0,0.00055342,2]
[321902765,1712601048886,-153.0,0.00055342,2]
[321902767,1712601048895,-153.0,0.00055342,2]
[321902768,1712601048904,-153.0,0.00055342,2]
[321902770,1712601048913,-153.0,0.00055342,60]
[321902772,1712601048923,-153.0,0.00055342,60]
[321902774,1712601048932,-153.0,0.00055381,2]
[321902776,1712601048941,-153.0,0.00055381,2]
[321902778,1712601048949,-153.0,0.00055381,2]
[321902780,1712601048959,-153.0,0.00055381,2]
[321902782,1712601048968,-153.0,0.00055381,2]
[321902784,1712601048976,-160.726723,0.00055565,120]
[321902786,1712601048989,-156.39930258,0.00055863,2]
[321902788,1712601048998,-153.0,0.00055916,2]
[321902790,1712601049007,-153.0,0.00055916,2]
[321902792,1712601049016,-153.0,0.00055916,2]
[321902794,1712601049025,-153.0,0.00055916,2]
[321902796,1712601049034,-153.0,0.00055916,2]
[321902798,1712601049043,-306.0,0.00055916,2]
[321902800,1712601049052,-2000.0,0.00056,30]
[321902802,1712601049061,-153.0,0.00056164,60]
[321902804,1712601049070,-153.0,0.00056164,60]
[321902806,1712601049078,-153.0,0.00056164,60]
[321902808,1712601049088,-153.0,0.00056164,60]
[321902810,1712601049097,-306.0,0.00056164,60]
[321902811,1712601049106,-306.0,0.00056164,2]
[321902813,1712601049115,-153.0,0.00056164,2]
[321902815,1712601049125,-153.0,0.00056164,2]
[321902817,1712601049134,-153.0,0.00056164,2]
[321902819,1712601049143,-975.389615,0.00056295,30]
[321902821,1712601049152,-153.53225864,0.00056299,120]
[321902823,1712601049161,-153.53225864,0.00056468,120]
[321902825,1712601049174,-153.0,0.00056986,2]
[321902827,1712601049183,-153.0,0.00056986,2]
[321902829,1712601049193,-153.0,0.00056986,2]
[321902831,1712601049201,-153.0,0.00056986,2]
[321902833,1712601049210,-153.0,0.00056986,2]
[321902835,1712601049219,-153.0,0.00056986,2]
[321902837,1712601049229,-153.0,0.00056986,2]
[321902839,1712601049238,-2000.0,0.00057,30]
[321902841,1712601049247,-155.25956853,0.00057063,120]
[321902843,1712601049257,-153.0,0.00057808,60]
[321902845,1712601049267,-153.0,0.00057808,60]
[321902847,1712601049276,-153.0,0.00057808,60]
[321902849,1712601049285,-236.8329,0.0005786,2]
[321902851,1712601049294,-2000.0,0.00058,30]
[321902853,1712601049304,-10000.0,0.00058,45]
[321902855,1712601049313,-151.0,0.00058,120]
[321902857,1712601049323,-151.0,0.00058,120]
[321902859,1712601049333,-153.53225864,0.00058256,120]
[321902861,1712601049342,-1536.0,0.00058517,10]
[321902863,1712601049351,-172.241097,0.00058708,2]
[321902865,1712601049360,-4197.63451196,0.000588,120]
[321902867,1712601049369,-175.21648621,0.00059,30]
[321903080,1712601065192,2614.08004521,0.00024,2]
[321903082,1712601147294,200.0,0.00024,2]
[321903083,1712601237329,208.086482,0.00040536,120]
[321903084,1712601256665,14873.08422011,0.00024,2]
[321903085,1712601295020,277.1972046,0.00027397,2]
[321903090,1712602004937,753.84298877,0.000274,2]
[321903091,1712602022794,257.96660381,0.000274,2]
[321903092,1712602042140,-154.8915759,0.00040396,4]
[321903093,1712602042160,-194.85910493,0.00040397,4]
[321903094,1712602160114,-726.49061204,0.00040392,4]
[321903095,1712602160135,-2071.18761788,0.00040393,120]
[321903153,1712602234065,-1166.47225466,0.00038292,4]
[321903163,1712602234074,-376.95280026,0.00038293,2]
[321903165,1712602234170,-591.90533208,0.00040409,4]
[321903172,1712602234232,-741.41098389,0.00040409,4]
[321903174,1712602234242,-521.10292742,0.0004041,4]
[321903176,1712602234251,-156.5090987,0.00040425,2]
[321903178,1712602234261,-550.0,0.00040535,3]
[321903180,1712602234271,-482.60358277,0.00040535,5]
[321903183,1712602234285,-67.39641723,0.00040535,5]
[321903185,1712602234295,-4684.9971754,0.00040536,120]
[321903187,1712602234306,-766.8143494,0.00040536,120]
[321903189,1712602234315,-394.199275,0.00041,30]
[321903191,1712602234325,-166.666666,0.00041953,2]
[321903193,1712602234334,-250.0,0.0004242,2]
[321903195,1712602234344,-414.228868,0.00042607,2]
[321903197,1712602234353,-1760.486161,0.00042851,120]
[321903199,1712602234362,-166.666666,0.00043097,2]
[321903201,1712602234372,-650.0,0.00043214,5]
[321903203,1712602234382,-376.95280026,0.00043293,2]
[321903205,1712602234391,-153.53225864,0.00043624,30]
[321903207,1712602234400,-166.666666,0.00044241,2]
[321903208,1712602234410,-770.0,0.00044589,3]
[321903210,1712602234419,-155.96001844,0.00045123,4]
[321903212,1712602234428,-846.44820607,0.00045123,4]
[321903214,1712602234437,-156.5090987,0.00045269,2]
[321903216,1712602234446,-166.666666,0.00045384,2]
[321903218,1712602234456,-180.408073,0.00046151,2]
[321903220,1712602234465,-166.666666,0.00046528,2]
[321903222,1712602234474,-1453.70147651,0.00047497,4]
[321903224,1712602234484,-218.96078063,0.00047498,4]
[321903226,1712602234492,-6740.25451921,0.00047498,4]
[321903228,1712602234504,-2492.46430233,0.00047498,4]
[321903230,1712602234514,-156.29637632,0.00047499,4]
[321903232,1712602234524,-3452.74820724,0.00047499,120]
[321903234,1712602234535,-5330.55757211,0.000475,2]
[321903609,1712602238558,-740.0,0.000475,2]
[321903650,1712602241377,-14377.14891633,0.000475,2]
[321903652,1712602241387,-166.666666,0.00047672,2]
[321903654,1712602241396,-376.95280026,0.00048293,2]
[321903655,1712602241405,-192.76083212,0.00048415,120]
[321903656,1712602241414,-354.76867878,0.00048415,120]
[321903657,1712602241423,-24900.0,0.00048416,2]
[321903658,1712602241432,-366.26811483,0.00048726,2]
[321903659,1712602241441,-618.34602873,0.00048826,4]
[321903660,1712602241450,-3369.67509796,0.00049,120]
[321903661,1712602241458,-1077.0,0.00049048,3]
[321903662,1712602241467,-541.42049465,0.00049319,2]
[321903663,1712602241476,-206.78943606,0.00049319,4]
[321903664,1712602241484,-156.56610872,0.00049319,4]
[321903665,1712602241493,-254.40193028,0.00049319,4]
[321903666,1712602241502,-263.2651397,0.00049319,4]
[321903667,1712602241511,-311.82209856,0.00049319,4]
[321903669,1712602241525,-5778.03579658,0.00049319,4]
[321903671,1712602241534,-5561.60923503,0.00049319,4]
[321903673,1712602241543,-484.85959985,0.0004932,4]
[321903675,1712602241552,-6253.81978402,0.00049321,4]
[321903677,1712602241564,-624.65279,0.00049321,4]
[321903679,1712602241575,-49341.46433852,0.00049321,4]
[321903680,1712602241584,-155.96053139,0.00049541,4]
[321903681,1712602241595,-283.87912232,0.00049541,4]
[321903683,1712602241604,-363.80388989,0.00049541,4]
[321903685,1712602241613,-891.68561182,0.00049541,4]
[321903686,1712602241621,-193.28382761,0.00049541,4]
[321903687,1712602241632,-322.89169328,0.00049541,4]
[321903688,1712602241641,-4016.08815691,0.00049541,4]
[321903689,1712602241650,-193.1913654,0.00049541,4]
[321903690,1712602241659,-435.28242693,0.00049541,4]
[321903691,1712602241668,-1131.10155601,0.00049541,4]
[321903692,1712602241678,-4276.51349334,0.00049541,4]
[321903693,1712602241687,-529.47917891,0.00049541,4]
[321903694,1712602241771,-548.71242219,0.00049541,4]
[321903695,1712602241781,-282.48776653,0.00049542,4]
[321903696,1712602241790,-266.22546721,0.00049542,4]
[321903697,1712602241799,-366.26811479,0.0004977,2]
[321903698,1712602241808,-1760.486161,0.00049992,120]
[321903699,1712602241817,-154.98450155,0.00049998,4]
[321903700,1712602241827,-22787.18749186,0.00049998,120]
[321903701,1712602241836,-407.76045621,0.00049999,4]
[321903702,1712602241846,-954.10944275,0.0005,60]
[321903703,1712602241856,-2415.55737115,0.0005,2]
[321903704,1712602241864,-2000.0,0.0005,73]
[321903705,1712602241874,-2897.79348,0.0005001,73]
[321903706,1712602241883,-156.5090987,0.00050113,2]
[321903707,1712602241892,-153.53225864,0.00050293,60]
[321903708,1712602241901,-366.26811479,0.00050813,2]
[321903709,1712602241911,-366.26811479,0.00051857,2]
[321903710,1712602241920,-1085.5419249,0.00051998,4]
[321903711,1712602241929,-271.64376324,0.00051998,4]
[321903712,1712602241939,-175.18175534,0.00051998,4]
[321903713,1712602241948,-542.30006733,0.00051998,2]
[321903714,1712602241957,-305.03327715,0.00051998,4]
[321903715,1712602241967,-157.12420325,0.00051998,4]
[321903716,1712602241976,-55333.58689146,0.00052,61]
[321903717,1712602241985,-27800.34005159,0.00052,120]